fUSD/lending_fUSD_20250513
["ID","MTS","AMOUNT","RATE_DAILY","PERIOD"]
[360953064,1747159966106,-4369.14947649,0.00026,2]
[360953065,1747159966115,-920.33171898,0.00026,2]
[360953066,1747159966124,-308.33388563,0.00026,2]
[360953067,1747159966133,-2110.0,0.00026,2]
[360953068,1747159966143,-13095.26395669,0.00026,3]
[360953069,1747159966152,-626.5,0.00026027,2]
[360953070,1747159966161,-137740.8,0.000261,7]
[360953071,1747159966171,-206.13,0.00026164,2]
[360953072,1747159966183,-325.12,0.00026212,2]
[360953073,1747159966193,-150.0,0.00026212,2]
[360953074,1747159966202,-487.9,0.00026212,2]
[360953075,1747159966211,-150.0,0.00026212,2]
[360953076,1747159966221,-452.54,0.00026212,2]
[360953077,1747159966230,-300.0,0.00026213,2]
[360953078,1747159966240,-905.08,0.00026213,2]
[360953079,1747159966249,-705.6,0.00026213,2]
[360953080,1747159966259,-162.56,0.00026213,2]
[360953081,1747159966268,-150.12,0.00026213,2]
[360953082,1747159966277,-452.54,0.00026215,2]
[360953083,1747159966288,-162.56,0.00026215,2]
[360953084,1747159966298,-150.12,0.00026215,2]
[360953085,1747159966307,-352.8,0.00026215,2]
[360953086,1747159966317,-1925.62,0.00026265,2]
[360953087,1747159966326,-1000.0,0.000263,2]
[360953088,1747159966335,-206.13,0.00026301,2]
[360953089,1747159966345,-26526.75764536,0.000264,2]
[360953090,1747159966354,-206.13,0.00026438,2]
[360953091,1747159966363,-46234.50029578,0.000265,2]
[360953092,1747159966372,-2110.0,0.000265,2]
[360953093,1747159966382,-150.0,0.00026532,2]
[360953094,1747159966391,-1500.0,0.00026571,2]
[360953095,1747159966401,-1500.0,0.00026571,2]
[360953096,1747159966411,-500.0,0.00026571,2]
[360953097,1747159966421,-1500.0,0.00026571,2]
[360953098,1747159966431,-1500.0,0.00026571,2]
[360953099,1747159966441,-1500.0,0.00026571,2]
[360953100,1747159966451,-1500.0,0.00026571,2]
[360953101,1747159966460,-1626.93593664,0.00026571,2]
[360953102,1747159966470,-206.13,0.00026575,2]
[360953103,1747159966480,-1250.0,0.00026575,2]
[360953104,1747159966491,-16000.0,0.000266,2]
[360953105,1747159966500,-987.41,0.00026676,2]
[360953106,1747159966509,-206.13,0.00026712,2]
[360953107,1747159966519,-500.0,0.00026801,2]
[360953108,1747159966530,-1000.0,0.00026848,15]
[360953109,1747159966540,-206.13,0.00026849,2]
[360953110,1747159966550,-206.13,0.00026986,2]
[360953111,1747159966559,-250.0,0.00027,2]
[360953112,1747159966568,-1000.14013629,0.00027,2]
[360953113,1747159966577,-202.33128993,0.00027,2]
[360953114,1747159966587,-10000.0,0.00027,2]
[360953115,1747159966597,-2110.0,0.00027,2]
[360953116,1747159966606,-1800.0,0.00027,28]
[360953117,1747159966616,-137740.8,0.00027,7]
[360953118,1747159966625,-500.0,0.00027,2]
[360953119,1747159966635,-500.0,0.00027,2]
[360953120,1747159966644,-2800.415926,0.00027,2]
[360953121,1747159966653,-297.4,0.00027035,2]
[360953122,1747159966662,-150.0,0.00027109,2]
[360953123,1747159966672,-206.13,0.00027123,2]
[360953124,1747159966681,-3555.69,0.00027123,2]
[360953125,1747159966691,-206.13,0.0002726,2]
[360953126,1747159966701,-626.5,0.00027397,2]
[360953127,1747159966711,-580.59715689,0.00027397,2]
[360953128,1747159966720,-206.13,0.00027397,2]
[360953129,1747159966730,-539.04,0.00027397,2]
[360953130,1747159966740,-539.04,0.00027397,2]
[360953131,1747159966750,-539.04,0.00027397,2]
[360953132,1747159966760,-539.04,0.00027397,2]
[360953133,1747159966769,-539.04,0.00027397,2]
[360953134,1747159966779,-539.04,0.00027397,2]
[360953135,1747159966789,-539.04,0.00027397,2]
[360953136,1747159966798,-539.04,0.00027397,2]
[360953137,1747159966810,-539.04,0.00027397,2]
[360953138,1747159966819,-539.04,0.00027397,2]
[360953139,1747159966828,-539.04,0.00027397,2]
[360953140,1747159966838,-539.04,0.00027397,2]
[360953141,1747159966848,-539.04,0.00027397,2]
[360953142,1747159966857,-539.04,0.00027397,2]
[360953143,1747159966867,-539.04,0.00027397,2]
[360953144,1747159966877,-539.04,0.00027397,2]
[360953145,1747159966886,-539.04,0.00027397,2]
[360953146,1747159966896,-539.04,0.00027397,2]
[360953147,1747159966906,-539.04,0.00027397,2]
[360953148,1747159966917,-539.04,0.00027397,2]
[360953149,1747159966927,-539.04,0.00027397,2]
[360953150,1747159966936,-539.04,0.00027397,2]
[360953151,1747159966946,-539.04,0.00027397,2]
[360953152,1747159966955,-539.1345389,0.00027397,2]
[360953153,1747159966965,-1354.8441254,0.00027397,7]
[360953154,1747159966975,-150.0,0.00027397,2]
[360953155,1747159966985,-150.0,0.00027397,2]
[360953156,1747159966994,-150.0,0.00027397,2]
[360953157,1747159967003,-1000.0,0.00027397,2]
[360953158,1747159967013,-336.333194,0.00027397,7]
[360953159,1747159967022,-336.333194,0.00027397,7]
[360953160,1747159967031,-336.333195,0.00027397,7]
[360953161,1747159967042,-400.299718,0.00027397,7]
[360953162,1747159967051,-400.299718,0.00027397,7]
[360953163,1747159967061,-400.299718,0.00027397,7]
[360953164,1747159967070,-400.299718,0.00027397,7]
[360953165,1747159967079,-400.299718,0.00027397,7]
[360953166,1747159967088,-400.299718,0.00027397,7]
[360953167,1747159967098,-400.299718,0.00027397,7]
[360953168,1747159967107,-400.299718,0.00027397,7]
[360953169,1747159967117,-400.299718,0.00027397,7]
[360953170,1747159967126,-400.299718,0.00027397,7]
[360953171,1747159967136,-400.299718,0.00027397,7]
[360953172,1747159967145,-400.299718,0.00027397,7]
[360953173,1747159967154,-400.299718,0.00027397,7]
[360953174,1747159967164,-400.299718,0.00027397,7]
[360953175,1747159967175,-400.299718,0.00027397,7]
[360953176,1747159967187,-400.299718,0.00027397,7]
[360953177,1747159967197,-400.299718,0.00027397,7]
[360953178,1747159967208,-400.299718,0.00027397,7]
[360953179,1747159967217,-400.299718,0.00027397,7]
[360953180,1747159967227,-400.29972345,0.00027397,7]
[360953181,1747159967237,-9566.89,0.00027397,2]
[360953182,1747159967248,-1743.15,0.00027397,15]
[360953183,1747159967257,-643.46,0.00027397,2]
[360953184,1747159967267,-300.0,0.00027397,2]
[360953185,1747159967277,-500.36,0.00027397,2]
[360953186,1747159967288,-153.48737202,0.00027397,5]
[360953187,1747159967297,-500.0,0.00027397,4]
[360953188,1747159967306,-152.56960149,0.00027397,5]
[360953189,1747159967316,-171.53205417,0.00027397,5]
[360953190,1747159967325,-67318.14,0.000274,2]
[360953191,1747159967334,-500.0,0.000274,2]
[360953192,1747159967343,-1200.0,0.000274,2]
[360953193,1747159967352,-650.0,0.000274,2]
[360953194,1747159967362,-194.23134309,0.000275,2]
[360953195,1747159967371,-530.45123144,0.000275,2]
[360953196,1747159967380,-2110.0,0.000275,2]
[360953197,1747159967628,-206.13,0.00027534,2]
[360953198,1747159967638,-1000.0,0.00027534,7]
[360953199,1747159967648,-206.13,0.00027671,2]
[360953200,1747159967657,-1000.0,0.00027671,7]
[360953201,1747159967667,-150.0,0.00027686,2]
[360953202,1747159967677,-1000.0,0.00027698,2]
[360953203,1747159967686,-1000.0,0.00027698,2]
[360953204,1747159967696,-1000.0,0.00027698,2]
[360953205,1747159967706,-1000.0,0.00027698,2]
[360953206,1747159967715,-1000.0,0.00027698,2]
[360953207,1747159967725,-1000.0,0.00027698,2]
[360953208,1747159967735,-1000.0,0.00027698,2]
[360953209,1747159967745,-1000.0,0.00027698,2]
[360953210,1747159967755,-1000.0,0.00027698,2]
[360953211,1747159967765,-1000.0,0.00027698,2]
[360953212,1747159967775,-1000.0,0.00027698,2]
[360953213,1747159967787,-1000.0,0.00027698,2]
[360953214,1747159967797,-1000.0,0.00027698,2]
[360953215,1747159967807,-1000.0,0.00027698,2]
[360953216,1747159967817,-1000.0,0.00027698,2]
[360953217,1747159967827,-1000.0,0.00027698,2]
[360953218,1747159967838,-1000.0,0.00027698,2]
[360953219,1747159967848,-1000.0,0.00027698,2]
[360953220,1747159967858,-1000.0,0.00027698,2]
[360953221,1747159967868,-1000.0,0.00027698,2]
[360953222,1747159967877,-1000.0,0.00027698,2]
[360953223,1747159967887,-1000.0,0.00027698,2]
[360953224,1747159967897,-1000.0,0.00027698,2]
[360953225,1747159967907,-623.95771584,0.00027698,2]
[360953226,1747159967917,-501.31192492,0.0002774,5]
[360953227,1747159967927,-714.98700926,0.000278,4]
[360953228,1747159967937,-206.13,0.00027808,2]
[360953229,1747159967947,-1000.0,0.00027808,7]
[360953230,1747159967956,-391.0,0.0002783,15]
[360953231,1747159967966,-137740.8,0.000279,7]
[360953232,1747159967975,-206.13,0.00027945,2]
[360953233,1747159967985,-1000.0,0.00027945,7]
[360953234,1747159967995,-1000.0,0.00027945,4]
[360953235,1747159968005,-500.0,0.0002799,7]
[360953236,1747159968016,-500.6795,0.00028,5]
[360953237,1747159968025,-277.69,0.00028,2]
[360953238,1747159968036,-2110.0,0.00028,2]
[360953239,1747159968046,-1731.95,0.00028,5]
[360953240,1747159968056,-518.3621029,0.00028,2]
[360953241,1747159968065,-2000.0,0.00028,2]
[360953242,1747159968074,-24966.62,0.00028,7]
[360953243,1747159968082,-343.5,0.00028,15]
[360953244,1747159968090,-24988.38322907,0.00028,2]
[360953245,1747159968099,-500.0,0.00028,2]
[360953246,1747159968108,-500.0,0.00028,2]
[360953247,1747159968117,-600.0,0.00028,2]
[360953248,1747159968126,-500.0,0.00028,2]
[360953249,1747159968135,-600.0,0.00028,2]
[360953250,1747159968143,-810.0,0.00028,2]
[360953251,1747159968152,-500.0,0.00028,2]
[360953252,1747159968161,-600.0,0.00028,2]
[360953253,1747159968171,-500.0,0.00028,2]
[360953254,1747159968184,-600.0,0.00028,2]
[360953255,1747159968193,-500.0,0.00028,2]
[360953256,1747159968203,-600.0,0.00028,2]
[360953257,1747159968212,-600.0,0.00028,2]
[360953258,1747159968222,-500.0,0.00028,2]
[360953259,1747159968233,-500.0,0.00028,2]
[360953260,1747159968242,-600.0,0.00028,2]
[360953261,1747159968252,-600.0,0.00028,2]
[360953262,1747159968263,-986.24582129,0.00028,2]
[360953263,1747159968272,-600.0,0.00028,2]
[360953264,1747159968282,-500.0,0.00028,2]
[360953265,1747159968293,-164.34407794,0.00028,2]
[360953266,1747159968303,-600.0,0.00028,2]
[360953267,1747159968312,-600.0,0.00028,2]
[360953268,1747159968322,-546.57868124,0.00028,2]
[360953269,1747159968332,-989.75906077,0.00028,2]
[360953270,1747159968342,-500.0,0.00028,2]
[360953271,1747159968351,-600.0,0.00028,2]
[360953272,1747159968361,-500.0,0.00028,2]
[360953273,1747159968372,-600.0,0.00028,2]
[360953274,1747159968382,-1300.0,0.00028,2]
[360953275,1747159968391,-500.0,0.00028,2]
[360953276,1747159968401,-500.0,0.00028,2]
[360953277,1747159968410,-1300.0,0.00028,2]
[360953278,1747159968420,-500.0,0.00028,2]
[360953279,1747159968430,-600.0,0.00028,2]
[360953280,1747159968439,-500.0,0.00028,2]
[360953281,1747159968448,-500.0,0.00028,2]
[360953282,1747159968457,-1300.0,0.00028,2]
[360953283,1747159968468,-500.0,0.00028,2]
[360953284,1747159968477,-500.0,0.00028,2]
[360953285,1747159968487,-500.0,0.00028,2]
[360953286,1747159968496,-1300.0,0.00028,2]
[360953287,1747159968506,-500.0,0.00028,2]
[360953288,1747159968516,-500.0,0.00028,2]
[360953289,1747159968525,-600.0,0.00028,2]
[360953290,1747159968536,-500.0,0.00028,2]
[360953291,1747159968545,-500.0,0.00028,2]
[360953292,1747159968555,-1300.0,0.00028,2]
[360953293,1747159968564,-500.0,0.00028,2]
[360953294,1747159968573,-500.0,0.00028,2]
[360953295,1747159968582,-600.0,0.00028,2]
[360953296,1747159968592,-500.0,0.00028,2]
[360953297,1747159968601,-1300.0,0.00028,2]
[360953298,1747159968610,-500.0,0.00028,2]
[360953299,1747159968622,-500.0,0.00028,2]
[360953300,1747159968631,-500.0,0.00028,2]
[360953301,1747159968641,-980.31347943,0.00028,2]
[360953302,1747159968650,-600.0,0.00028,2]
[360953303,1747159968659,-1300.0,0.00028,2]
[360953304,1747159968668,-500.0,0.00028,2]
[360953305,1747159968677,-500.0,0.00028,2]
[360953306,1747159968686,-500.0,0.00028,2]
[360953307,1747159968696,-500.0,0.00028,2]
[360953308,1747159968705,-600.0,0.00028,2]
[360953309,1747159968716,-1300.0,0.00028,2]
[360953310,1747159968725,-500.0,0.00028,2]
[360953311,1747159968735,-500.0,0.00028,2]
[360953312,1747159968744,-500.0,0.00028,2]
[360953313,1747159968754,-500.0,0.00028,2]
[360953314,1747159968764,-600.0,0.00028,2]
[360953315,1747159968774,-1300.0,0.00028,2]
[360953316,1747159968784,-500.0,0.00028,2]
[360953317,1747159968794,-500.0,0.00028,2]
[360953318,1747159968803,-500.0,0.00028,2]
[360953319,1747159968811,-500.0,0.00028,2]
[360953320,1747159968821,-500.0,0.00028,2]
[360953321,1747159968829,-500.0,0.00028,2]
[360953322,1747159968838,-600.0,0.00028,2]
[360953323,1747159968847,-500.0,0.00028,2]
[360953324,1747159968857,-1300.0,0.00028,2]
[360953325,1747159968866,-500.0,0.00028,2]
[360953326,1747159968876,-500.0,0.00028,2]
[360953327,1747159968886,-500.0,0.00028,2]
[360953328,1747159968896,-500.0,0.00028,2]
[360953329,1747159968905,-500.0,0.00028,2]
[360953330,1747159968915,-501.99001285,0.00028,2]
[360953331,1747159968925,-600.0,0.00028,2]
[360953332,1747159968935,-500.0,0.00028,2]
[360953333,1747159968945,-1300.0,0.00028,2]
[360953334,1747159968955,-500.0,0.00028,2]
[360953335,1747159968965,-599.25392928,0.00028,2]
[360953336,1747159968975,-850.34734489,0.00028,2]
[360953337,1747159968985,-500.0,0.00028,2]
[360953338,1747159968994,-793.71915563,0.00028,2]
[360953339,1747159969004,-600.0,0.00028,2]
[360953340,1747159969014,-500.0,0.00028,2]
[360953341,1747159969024,-1300.0,0.00028,2]
[360953342,1747159969049,-500.0,0.00028,2]
[360953343,1747159969068,-600.30878226,0.00028,2]
[360953344,1747159969090,-500.0,0.00028,2]
[360953345,1747159969110,-600.0,0.00028,2]
[360953346,1747159969130,-500.0,0.00028,2]
[360953347,1747159969150,-1300.0,0.00028,2]
[360953348,1747159969172,-500.0,0.00028,2]
[360953349,1747159969195,-500.0,0.00028,2]
[360953350,1747159969215,-500.0,0.00028,2]
[360953351,1747159969236,-500.0,0.00028,2]
[360953352,1747159969253,-600.0,0.00028,2]
[360953353,1747159969272,-500.0,0.00028,2]
[360953354,1747159969287,-1300.0,0.00028,2]
[360953355,1747159969305,-500.0,0.00028,2]
[360953356,1747159969322,-500.0,0.00028,2]
[360953357,1747159969340,-500.0,0.00028,2]
[360953358,1747159969357,-978.88362701,0.00028,2]
[360953359,1747159969375,-1300.0,0.00028,2]
[360953360,1747159969392,-867.31330075,0.00028,2]
[360953361,1747159969408,-500.0,0.00028,2]
[360953362,1747159969425,-500.0,0.00028,2]
[360953363,1747159969441,-1300.0,0.00028,2]
[360953364,1747159969457,-303.82615298,0.00028,2]
[360953365,1747159969474,-600.0,0.00028,2]
[360953366,1747159969490,-500.0,0.00028,2]
[360953367,1747159969508,-500.0,0.00028,2]
[360953368,1747159969525,-1300.0,0.00028,2]
[360953369,1747159969544,-964.44381513,0.00028,2]
[360953370,1747159969562,-500.0,0.00028,2]
[360953371,1747159969582,-600.0,0.00028,2]
[360953372,1747159969600,-500.0,0.00028,2]
[360953373,1747159969618,-192.36473464,0.00028,2]
[360953374,1747159969635,-1300.0,0.00028,2]
[360953375,1747159969653,-500.0,0.00028,2]
[360953376,1747159969672,-500.0,0.00028,2]
[360953377,1747159969689,-500.0,0.00028,2]
[360953378,1747159969708,-1300.0,0.00028,2]
[360953379,1747159969726,-500.0,0.00028,2]
[360953380,1747159969746,-600.0,0.00028,2]
[360953381,1747159969764,-769.84000946,0.00028,2]
[360953382,1747159969781,-500.0,0.00028,2]
[360953383,1747159969798,-500.0,0.00028,2]
[360953384,1747159969815,-1300.0,0.00028,2]
[360953385,1747159969833,-600.0,0.00028,2]
[360953386,1747159969851,-500.0,0.00028,2]
[360953387,1747159969868,-500.0,0.00028,2]
[360953388,1747159969886,-600.0,0.00028,2]
[360953389,1747159969902,-500.0,0.00028,2]
[360953390,1747159969918,-1300.0,0.00028,2]
[360953391,1747159969935,-600.0,0.00028,2]
[360953392,1747159969951,-1300.0,0.00028,2]
[360953393,1747159969968,-500.0,0.00028,2]
[360953394,1747159969984,-600.0,0.00028,2]
[360953395,1747159970001,-1300.0,0.00028,2]
[360953396,1747159970016,-500.0,0.00028,2]
[360953397,1747159970032,-500.0,0.00028,2]
[360953398,1747159970049,-600.0,0.00028,2]
[360953399,1747159970065,-500.0,0.00028,2]
[360953400,1747159970082,-500.0,0.00028,2]
[360953401,1747159970098,-600.0,0.00028,2]
[360953402,1747159970115,-500.0,0.00028,2]
[360953403,1747159970132,-1300.0,0.00028,2]
[360953404,1747159970147,-500.0,0.00028,2]
[360953405,1747159970163,-600.0,0.00028,2]
[360953406,1747159970181,-500.0,0.00028,2]
[360953407,1747159970197,-600.0,0.00028,2]
[360953408,1747159970212,-1300.0,0.00028,2]
[360953409,1747159970228,-600.0,0.00028,2]
[360953410,1747159970245,-1300.0,0.00028,2]
[360953411,1747159970263,-500.0,0.00028,2]
[360953412,1747159970279,-600.0,0.00028,2]
[360953413,1747159970296,-500.0,0.00028,2]
[360953414,1747159970312,-1300.0,0.00028,2]
[360953415,1747159970329,-500.0,0.00028,2]
[360953416,1747159970345,-600.0,0.00028,2]
[360953417,1747159970361,-1325.51799032,0.00028,2]
[360953418,1747159970376,-500.0,0.00028,2]
[360953419,1747159970392,-500.0,0.00028,2]
[360953420,1747159970408,-600.0,0.00028,2]
[360953421,1747159970424,-500.0,0.00028,2]
[360953422,1747159970438,-500.0,0.00028,2]
[360953423,1747159970453,-600.0,0.00028,2]
[360953424,1747159970468,-500.0,0.00028,2]
[360953425,1747159970485,-500.0,0.00028,2]
[360953426,1747159970501,-600.0,0.00028,2]
[360953427,1747159970516,-969.82471075,0.00028,2]
[360953428,1747159970532,-500.0,0.00028,2]
[360953429,1747159970551,-600.0,0.00028,2]
[360953430,1747159970567,-500.0,0.00028,2]
[360953431,1747159970583,-600.0,0.00028,2]
[360953432,1747159970599,-500.0,0.00028,2]
[360953433,1747159970615,-600.0,0.00028,2]
[360953434,1747159970630,-500.0,0.00028,2]
[360953435,1747159970646,-600.0,0.00028,2]
[360953436,1747159970662,-500.0,0.00028,2]
[360953437,1747159970678,-600.0,0.00028,2]
[360953438,1747159970694,-500.0,0.00028,2]
[360953439,1747159970709,-600.0,0.00028,2]
[360953440,1747159970725,-500.0,0.00028,2]
[360953441,1747159970740,-600.0,0.00028,2]
[360953442,1747159970755,-500.0,0.00028,2]
[360953443,1747159970772,-600.0,0.00028,2]
[360953444,1747159970788,-500.0,0.00028,2]
[360953445,1747159970804,-600.0,0.00028,2]
[360953446,1747159970820,-500.0,0.00028,2]
[360953447,1747159970838,-600.0,0.00028,2]
[360953448,1747159970855,-690.55889258,0.00028,2]
[360953449,1747159970871,-600.0,0.00028,2]
[360953450,1747159970887,-1070.35458456,0.00028,2]
[360953451,1747159970904,-2721.648893,0.00028,2]
[360953452,1747159970922,-1004.356451,0.00028,30]
[360953453,1747159970938,-499.76766458,0.00028,2]
[360953454,1747159970952,-260.4305778,0.00028,3]
[360953455,1747159970969,-781.85260006,0.00028,2]
[360953456,1747159970985,-227328.91292549,0.00028,2]
[360953457,1747159971001,-1800.0,0.00028,29]
[360953458,1747159971019,-1024.51202508,0.00028,10]
[360953459,1747159971034,-206.13,0.00028082,2]
[360953460,1747159971051,-1000.0,0.00028082,7]
[360953461,1747159971067,-67318.14,0.000281,2]
[360953462,1747159971082,-206.13,0.00028219,2]
[360953463,1747159971097,-1000.0,0.00028219,7]
[360953464,1747159971113,-150.0,0.00028263,2]
[360953465,1747159971130,-206.13,0.00028356,2]
[360953466,1747159971146,-1000.0,0.00028356,7]
[360953467,1747159971161,-206.13,0.00028493,2]
[360953468,1747159971177,-1000.0,0.00028493,7]
[360953469,1747159971194,-223.44,0.00028493,2]
[360953470,1747159971209,-1367.56495866,0.00028493,4]
[360953471,1747159971225,-1002.24827962,0.000285,7]
[360953472,1747159971240,-2110.0,0.000285,2]
[360953473,1747159971257,-222161.29426397,0.000285,5]
[360953474,1747159971274,-151626.56528351,0.000285,5]
[360953475,1747159971289,-1500.0,0.000285,2]
[360953476,1747159971306,-1925.62,0.0002852,2]
[360953477,1747159971322,-206.13,0.0002863,2]
[360953478,1747159971337,-1000.0,0.0002863,7]
[360953479,1747159971351,-618.0,0.0002863,7]
[360953480,1747159971366,-3223.0928055,0.00028631,2]
[360953481,1747159971383,-626.5,0.00028767,2]
[360953482,1747159971397,-206.13,0.00028767,2]
[360953483,1747159971412,-9566.89,0.00028767,2]
[360953484,1747159971428,-67318.14,0.000288,2]
[360953485,1747159971838,-5036.62289454,0.000288,10]
[360953486,1747159971860,-150.0,0.00028839,2]
[360953487,1747159971875,-13186.5900833,0.0002888,2]
[360953488,1747159971885,-591451.7880909,0.000289,5]
[360953489,1747159971895,-206.13,0.00028904,2]
[360953490,1747159971905,-75183.26679315,0.00029,2]
[360953491,1747159971914,-53331.89591399,0.00029,2]
[360953492,1747159971924,-2299.92264614,0.00029,10]
[360953493,1747159971935,-101017.02871434,0.00029,2]
[360953494,1747159971945,-3000.0,0.00029,2]
[360953495,1747159971955,-2035.0,0.00029,5]
[360953496,1747159971965,-300.83904291,0.00029,2]
[360953497,1747159971975,-260.57752126,0.00029,2]
[360953498,1747159971985,-4000.0,0.00029,4]
[360953499,1747159971995,-2110.0,0.00029,2]
[360953500,1747159972004,-550.0,0.00029,2]
[360953501,1747159972014,-550.0,0.00029,2]
[360953502,1747159972023,-150.37,0.00029,2]
[360953503,1747159972033,-150.37,0.00029,2]
[360953504,1747159972043,-1500.0,0.00029,2]
[360953505,1747159972053,-206.13,0.00029041,2]
[360953506,1747159972063,-206.13,0.00029178,2]
[360953507,1747159972072,-1500.0,0.00029197,5]
[360953508,1747159972081,-1500.0,0.00029197,5]
[360953509,1747159972091,-1160.40658797,0.00029197,5]
[360953510,1747159972102,-1500.0,0.00029197,5]
[360953511,1747159972113,-1500.0,0.00029197,5]
[360953512,1747159972123,-1500.0,0.00029197,5]
[360953513,1747159972132,-1500.0,0.00029197,5]
[360953514,1747159972141,-659.42971081,0.00029197,5]
[360953515,1747159972152,-1500.0,0.00029197,5]
[360953516,1747159972163,-1500.0,0.00029197,5]
[360953517,1747159972172,-1500.0,0.00029197,5]
[360953518,1747159972186,-1500.0,0.00029197,5]
[360953519,1747159972196,-995.89609938,0.00029197,5]
[360953520,1747159972206,-1500.0,0.00029197,5]
[360953521,1747159972215,-1500.0,0.00029197,5]
[360953522,1747159972225,-1500.0,0.00029197,5]
[360953523,1747159972235,-1500.0,0.00029197,5]
[360953524,1747159972244,-1500.0,0.00029197,5]
[360953525,1747159972255,-757.61362544,0.00029197,5]
[360953526,1747159972265,-1500.0,0.00029197,5]
[360953527,1747159972275,-206.36557637,0.00029315,2]
[360953528,1747159972284,-67318.14,0.000294,2]
[360953529,1747159972295,-150.0,0.00029416,2]
[360953530,1747159972305,-267.81,0.00029467,2]
[360953531,1747159972314,-797.84,0.00029467,2]
[360953532,1747159972324,-302.42,0.00029467,2]
[360953533,1747159972334,-328.03,0.00029467,2]
[360953534,1747159972344,-352.08,0.00029467,2]
[360953535,1747159972354,-2110.0,0.000295,2]
[360953536,1747159972364,-1070.48954767,0.000295,2]
[360953537,1747159972373,-1500.0,0.000295,2]
[360953538,1747159972383,-15938.46766428,0.00029555,2]
[360953539,1747159972394,-300.0,0.00029589,2]
[360953540,1747159972403,-300.0,0.00029589,2]
[360953541,1747159972412,-300.0,0.00029589,2]
[360953542,1747159972421,-300.0,0.00029589,2]
[360953543,1747159972430,-338.62733925,0.00029589,2]
[360953544,1747159972439,-500.0,0.00029602,2]
[360953545,1747159972450,-500.0,0.00029808,2]
[360953546,1747159972460,-1999.99999901,0.00029876,3]
[360953547,1747159972469,-4995.0,0.0002993,2]
[360953548,1747159972479,-229.47439847,0.0002999,2]
[360953549,1747159972488,-150.0,0.00029993,2]
[360953550,1747159972497,-19212.07826129,0.0003,2]
[360953551,1747159972507,-10000.0,0.0003,25]
[360953552,1747159972516,-1754.92687911,0.0003,2]
[360953553,1747159972525,-1050.06533099,0.0003,10]
[360953554,1747159972535,-963.95096648,0.0003,2]
[360953555,1747159972546,-161.01984806,0.0003,2]
[360953556,1747159972555,-302.0,0.0003,7]
[360953557,1747159972565,-205724.75199062,0.0003,2]
[360953558,1747159972574,-460.56,0.0003,2]
[360953559,1747159972583,-493.37987252,0.0003,2]
[360953560,1747159972593,-771.71524926,0.0003,7]
[360953561,1747159972602,-280.0,0.0003,7]
[360953562,1747159972611,-194.90871603,0.0003,2]
[360953563,1747159972621,-1217.31938679,0.0003,5]